[Event "*** Titled Tuesday Blitz"]
[Site "Chess.com"]
[Date "2018.05.01"]
[Round "1"]
[White "juniortay"]
[Black "bascheyaro"]
[Result "0-1"]
[WhiteElo "2358"]
[BlackElo "2677"]
[TimeControl "180+2"]
[EndTime "13:01:58 PDT"]
[Termination "bascheyaro won by resignation"]

1. e4 {[%clk 0:03:01.3]} 1... e6 {[%clk 0:03:00.3]} 2. Nf3 {[%clk 0:03:01.4]}
2... d5 {[%clk 0:03:02.2]} 3. Nc3 {[%clk 0:03:02.9]} 3... c5 {[%clk 0:03:03]} 4.
exd5 {[%clk 0:03:03.7]} 4... exd5 {[%clk 0:03:04.9]} 5. Bb5+ {[%clk 0:03:04.9]}
5... Nc6 {[%clk 0:03:06]} 6. Qe2+ {[%clk 0:03:04.4]} 6... Be7 {[%clk 0:03:04.7]}
7. Ne5 {[%clk 0:03:05.4]} 7... Bd7 {[%clk 0:03:05.7]} 8. Nxd5 {[%clk 0:03:05]}
8... Nxe5 {[%clk 0:03:05.6]} 9. Qxe5 {[%clk 0:03:06]} 9... Bxb5 {[%clk
0:03:06.5]} 10. Nc7+ {[%clk 0:03:06.2]} 10... Kf8 {[%clk 0:03:07.8]} 11. Nxb5
{[%clk 0:03:07.2]} 11... Qb6 {[%clk 0:03:05.4]} 12. Nc3 {[%clk 0:02:57.6]} 12...
Bf6 {[%clk 0:03:03.7]} 13. Qg3 {[%clk 0:02:47.6]} 13... Re8+ {[%clk 0:03:00.9]}
14. Kf1 {[%clk 0:02:48.6]} 14... Bxc3 {[%clk 0:03:00.7]} 15. bxc3 {[%clk
0:02:44.2]} 15... Qe6 {[%clk 0:02:51.8]} 16. Ba3 {[%clk 0:02:32.6]} 16... Qe2+
{[%clk 0:02:52.4]} 17. Kg1 {[%clk 0:02:32.1]} 17... Qe1+ {[%clk 0:02:53.8]} 0-1

[Event "*** Titled Tuesday Blitz"]
[Site "Chess.com"]
[Date "2018.05.01"]
[Round "1"]
[White "amiralfio"]
[Black "Last7Samurai"]
[Result "0-1"]
[WhiteElo "2341"]
[BlackElo "2663"]
[TimeControl "180+2"]
[EndTime "13:01:58 PDT"]
[Termination "Last7Samurai won by checkmate"]

1. d4 {[%clk 0:02:59.1]} 1... d5 {[%clk 0:03:00.2]} 2. Nf3 {[%clk 0:02:58.7]}
2... Nf6 {[%clk 0:03:00.6]} 3. c4 {[%clk 0:02:59.8]} 3... c6 {[%clk 0:03:01.1]}
4. Nc3 {[%clk 0:02:58.4]} 4... e6 {[%clk 0:03:01.5]} 5. e3 {[%clk 0:02:54.5]}
5... Nbd7 {[%clk 0:03:01.7]} 6. Qc2 {[%clk 0:02:54.2]} 6... Bd6 {[%clk
0:03:01.8]} 7. g4 {[%clk 0:02:55.2]} 7... dxc4 {[%clk 0:03:00.4]} 8. g5 {[%clk
0:02:54.7]} 8... Nd5 {[%clk 0:03:01.1]} 9. Bxc4 {[%clk 0:02:56]} 9... b5 {[%clk
0:03:01.7]} 10. Be2 {[%clk 0:02:56.4]} 10... Bb7 {[%clk 0:03:00.3]} 11. Bd2
{[%clk 0:02:54.9]} 11... a6 {[%clk 0:02:49.8]} 12. O-O-O {[%clk 0:02:47.4]}
12... c5 {[%clk 0:02:50.4]} 13. dxc5 {[%clk 0:02:45.4]} 13... Nxc5 {[%clk
0:02:52.3]} 14. e4 {[%clk 0:02:28.5]} 14... Nb4 {[%clk 0:02:50.9]} 15. Qb1
{[%clk 0:02:28.2]} 15... Rc8 {[%clk 0:02:49.2]} 16. a3 {[%clk 0:02:27.7]} 16...
Nb3# {[%clk 0:02:48.7]} 0-1

[Event "*** Titled Tuesday Blitz"]
[Site "Chess.com"]
[Date "2018.05.01"]
[Round "1"]
[White "MartinMatthiesen"]
[Black "michaelq2d5"]
[Result "0-1"]
[WhiteElo "2364"]
[BlackElo "2687"]
[TimeControl "180+2"]
[EndTime "13:02:33 PDT"]
[Termination "michaelq2d5 won by resignation"]

1. d4 {[%clk 0:03:01.8]} 1... Nf6 {[%clk 0:03:00.4]} 2. c4 {[%clk 0:03:02.2]}
2... e6 {[%clk 0:03:01.9]} 3. Nc3 {[%clk 0:03:02.7]} 3... Bb4 {[%clk 0:03:02.8]}
4. Qc2 {[%clk 0:03:03.3]} 4... O-O {[%clk 0:03:03.9]} 5. Nf3 {[%clk 0:03:02.8]}
5... d5 {[%clk 0:03:03.9]} 6. cxd5 {[%clk 0:03:00.6]} 6... exd5 {[%clk
0:03:04.9]} 7. Bf4 {[%clk 0:02:55.8]} 7... c5 {[%clk 0:03:04.3]} 8. dxc5 {[%clk
0:02:55.9]} 8... Nc6 {[%clk 0:03:02.8]} 9. e3 {[%clk 0:02:51.8]} 9... Re8 {[%clk
0:02:58.1]} 10. O-O-O {[%clk 0:02:35.3]} 10... Qa5 {[%clk 0:02:56.2]} 11. Kb1
{[%clk 0:01:50.3]} 11... Bxc3 {[%clk 0:02:40.9]} 12. Qxc3 {[%clk 0:01:51.3]}
12... Qxc3 {[%clk 0:02:41.9]} 13. bxc3 {[%clk 0:01:51.7]} 13... Ne4 {[%clk
0:02:43.6]} 14. Bg3 {[%clk 0:01:51.4]} 14... Nxc3+ {[%clk 0:02:43.6]} 0-1

[Event "*** Titled Tuesday Blitz"]
[Site "Chess.com"]
[Date "2018.05.01"]
[Round "1"]
[White "Er_is_geen_hoop_meer"]
[Black "sandromareco"]
[Result "1-0"]
[WhiteElo "2343"]
[BlackElo "2631"]
[TimeControl "180+2"]
[EndTime "13:02:36 PDT"]
[Termination "Er_is_geen_hoop_meer won by resignation"]

1. b4 {[%clk 0:03:00.3]} 1... e6 {[%clk 0:02:59.2]} 2. Bb2 {[%clk 0:03:01.1]}
2... Nf6 {[%clk 0:02:59.3]} 3. a3 {[%clk 0:03:01.9]} 3... d5 {[%clk 0:02:59.8]}
4. e3 {[%clk 0:03:02.5]} 4... Bd6 {[%clk 0:02:59.5]} 5. g4 {[%clk 0:03:03]} 5...
O-O {[%clk 0:02:59.5]} 6. g5 {[%clk 0:03:04.4]} 6... Ne8 {[%clk 0:02:55.5]} 7.
h4 {[%clk 0:03:05.7]} 7... a5 {[%clk 0:02:55.6]} 8. b5 {[%clk 0:03:06]} 8... c5
{[%clk 0:02:55.9]} 9. f4 {[%clk 0:03:05]} 9... b6 {[%clk 0:02:54.5]} 10. Bg2
{[%clk 0:03:05.1]} 10... Bb7 {[%clk 0:02:54.5]} 11. h5 {[%clk 0:03:06.6]} 11...
Nd7 {[%clk 0:02:52]} 12. Nf3 {[%clk 0:03:07.3]} 12... Qe7 {[%clk 0:02:52.1]} 13.
Qe2 {[%clk 0:03:07.7]} 13... e5 {[%clk 0:02:51.2]} 14. Nh4 {[%clk 0:03:08]}
14... g6 {[%clk 0:02:50.7]} 15. hxg6 {[%clk 0:03:08.4]} 15... fxg6 {[%clk
0:02:51.2]} 16. Nc3 {[%clk 0:03:06.6]} 16... Nc7 {[%clk 0:02:52.1]} 17. O-O-O
{[%clk 0:03:03.6]} 17... exf4 {[%clk 0:02:46.2]} 18. Nxg6 {[%clk 0:03:04.5]}
18... hxg6 {[%clk 0:02:45]} 19. Nxd5 {[%clk 0:02:55.2]} 19... Qxg5 {[%clk
0:02:25.9]} 20. Rh8+ {[%clk 0:02:48.6]} 20... Kf7 {[%clk 0:02:26.4]} 21. Rh7+
{[%clk 0:02:50.5]} 21... Ke8 {[%clk 0:02:20]} 22. exf4+ {[%clk 0:02:50.1]} 1-0

[Event "*** Titled Tuesday Blitz"]
[Site "Chess.com"]
[Date "2018.05.01"]
[Round "1"]
[White "robbykevlishvili"]
[Black "toad"]
[Result "1-0"]
[WhiteElo "2531"]
[BlackElo "2217"]
[TimeControl "180+2"]
[EndTime "13:03:34 PDT"]
[Termination "robbykevlishvili won by resignation"]

1. e4 {[%clk 0:02:58.5]} 1... c5 {[%clk 0:03:00.4]} 2. Nf3 {[%clk 0:02:56.1]}
2... d6 {[%clk 0:03:01.3]} 3. d4 {[%clk 0:02:54.6]} 3... cxd4 {[%clk 0:03:03.2]}
4. Nxd4 {[%clk 0:02:55.9]} 4... Nf6 {[%clk 0:03:04.4]} 5. Nc3 {[%clk 0:02:57.5]}
5... a6 {[%clk 0:03:05.7]} 6. Bc4 {[%clk 0:02:57.9]} 6... e6 {[%clk 0:03:06.1]}
7. Bb3 {[%clk 0:02:52.5]} 7... Nbd7 {[%clk 0:03:06.6]} 8. f4 {[%clk 0:02:50.7]}
8... Nc5 {[%clk 0:03:05.8]} 9. e5 {[%clk 0:02:51]} 9... Nxb3 {[%clk 0:02:51.4]}
10. axb3 {[%clk 0:02:50.4]} 10... Nd7 {[%clk 0:02:52.2]} 11. Be3 {[%clk
0:02:45.6]} 11... dxe5 {[%clk 0:02:42]} 12. fxe5 {[%clk 0:02:47.5]} 12... Nxe5
{[%clk 0:02:41.8]} 13. Qh5 {[%clk 0:02:48.2]} 13... Ng6 {[%clk 0:02:27.4]} 14.
O-O-O {[%clk 0:02:47.4]} 14... Qh4 {[%clk 0:02:05.8]} 15. Qe2 {[%clk 0:02:45.8]}
15... Be7 {[%clk 0:02:05.3]} 16. g3 {[%clk 0:02:46.5]} 16... Qf6 {[%clk
0:02:02.4]} 17. h4 {[%clk 0:02:46.2]} 17... h6 {[%clk 0:01:42.7]} 18. h5 {[%clk
0:02:43.6]} 18... Ne5 {[%clk 0:01:41.8]} 19. Ne4 {[%clk 0:02:43.6]} 1-0

[Event "*** Titled Tuesday Blitz"]
[Site "Chess.com"]
[Date "2018.05.01"]
[Round "1"]
[White "Federtiu"]
[Black "Too_Stupid_To_Play"]
[Result "1-0"]
[WhiteElo "2524"]
[BlackElo "2206"]
[TimeControl "180+2"]
[EndTime "13:04:19 PDT"]
[Termination "Federtiu won by resignation"]

1. e4 {[%clk 0:03:01.9]} 1... e5 {[%clk 0:03:00]} 2. f4 {[%clk 0:03:00.9]} 2...
d5 {[%clk 0:03:00.1]} 3. exd5 {[%clk 0:03:02.3]} 3... e4 {[%clk 0:03:01.5]} 4.
d3 {[%clk 0:03:03]} 4... Nf6 {[%clk 0:02:57.4]} 5. dxe4 {[%clk 0:02:28.7]} 5...
Nxe4 {[%clk 0:02:59.3]} 6. Qe2 {[%clk 0:02:18.4]} 6... Qxd5 {[%clk 0:02:51.9]}
7. Nd2 {[%clk 0:02:08.2]} 7... f5 {[%clk 0:02:47.1]} 8. Nxe4 {[%clk 0:02:06.5]}
8... Qxe4 {[%clk 0:02:47.7]} 9. Qxe4+ {[%clk 0:02:01.2]} 9... fxe4 {[%clk
0:02:49.6]} 10. Bd2 {[%clk 0:02:02.6]} 10... Bc5 {[%clk 0:02:40.2]} 11. Bc4
{[%clk 0:02:01.4]} 11... Bd7 {[%clk 0:02:29.4]} 12. O-O-O {[%clk 0:02:00]} 12...
Nc6 {[%clk 0:02:28]} 13. Re1 {[%clk 0:01:55]} 13... O-O-O {[%clk 0:02:16.7]} 14.
Rxe4 {[%clk 0:01:56]} 14... Rhe8 {[%clk 0:02:17.8]} 15. Rxe8 {[%clk 0:01:56.8]}
15... Rxe8 {[%clk 0:02:19.1]} 16. Nf3 {[%clk 0:01:58.4]} 16... Bg4 {[%clk
0:02:15.1]} 17. Rf1 {[%clk 0:01:54.1]} 17... Nd4 {[%clk 0:02:06.4]} 18. Nxd4
{[%clk 0:01:44.8]} 18... Bxd4 {[%clk 0:02:08.3]} 19. c3 {[%clk 0:01:41.4]} 19...
Bc5 {[%clk 0:02:05.5]} 20. f5 {[%clk 0:01:37.9]} 20... Rf8 {[%clk 0:01:49.8]}
21. h3 {[%clk 0:01:34.3]} 21... Bxf5 {[%clk 0:01:48]} 22. Rxf5 {[%clk
0:01:34.4]} 1-0

[Event "*** Titled Tuesday Blitz"]
[Site "Chess.com"]
[Date "2018.05.01"]
[Round "1"]
[White "Alexander_Donchenko"]
[Black "StoreySniper"]
[Result "1-0"]
[WhiteElo "2671"]
[BlackElo "2350"]
[TimeControl "180+2"]
[EndTime "13:04:56 PDT"]
[Termination "Alexander_Donchenko won by resignation"]

1. Nf3 {[%clk 0:03:01.9]} 1... g6 {[%clk 0:02:49.9]} 2. g3 {[%clk 0:03:01.4]}
2... Bg7 {[%clk 0:02:50.1]} 3. Bg2 {[%clk 0:03:02.8]} 3... c5 {[%clk 0:02:50.4]}
4. c4 {[%clk 0:03:02.8]} 4... Nc6 {[%clk 0:02:51.6]} 5. Nc3 {[%clk 0:03:04.1]}
5... Rb8 {[%clk 0:02:52.6]} 6. O-O {[%clk 0:03:04.7]} 6... a6 {[%clk 0:02:53.8]}
7. e3 {[%clk 0:03:00.6]} 7... b5 {[%clk 0:02:53.7]} 8. cxb5 {[%clk 0:03:01.4]}
8... axb5 {[%clk 0:02:55.6]} 9. d4 {[%clk 0:03:02.7]} 9... cxd4 {[%clk
0:02:56.6]} 10. exd4 {[%clk 0:03:03.5]} 10... b4 {[%clk 0:02:57.3]} 11. Ne4
{[%clk 0:03:02.6]} 11... Nf6 {[%clk 0:02:57.4]} 12. Nxf6+ {[%clk 0:02:56.1]}
12... Bxf6 {[%clk 0:02:58.2]} 13. Bh6 {[%clk 0:02:48.2]} 13... Rb5 {[%clk
0:02:57.7]} 14. d5 {[%clk 0:02:45]} 14... Ne5 {[%clk 0:02:53.6]} 15. Re1 {[%clk
0:02:40.6]} 15... Ng4 {[%clk 0:02:48.9]} 16. Nd4 {[%clk 0:02:39.3]} 16... Nxh6
{[%clk 0:02:44.6]} 17. Nxb5 {[%clk 0:02:40.2]} 17... Qb6 {[%clk 0:02:39.3]} 18.
d6 {[%clk 0:02:08.5]} 18... Qxb5 {[%clk 0:02:30.9]} 19. Qc1 {[%clk 0:02:09.6]}
19... O-O {[%clk 0:02:24.6]} 20. dxe7 {[%clk 0:02:10.2]} 20... Re8 {[%clk
0:02:12.5]} 21. Qxh6 {[%clk 0:02:09.4]} 21... Bxb2 {[%clk 0:02:13.2]} 22. Rad1
{[%clk 0:02:01.2]} 22... Bb7 {[%clk 0:02:11.7]} 23. Bxb7 {[%clk 0:01:17.7]}
23... Qxb7 {[%clk 0:02:13.6]} 24. Qd2 {[%clk 0:01:18.9]} 24... Bc3 {[%clk
0:02:07.3]} 25. Qxd7 {[%clk 0:01:19.9]} 25... Qxd7 {[%clk 0:01:46.8]} 26. Rxd7
{[%clk 0:01:21.8]} 26... Bf6 {[%clk 0:01:47.9]} 27. Rd8 {[%clk 0:01:20.1]} 1-0

[Event "*** Titled Tuesday Blitz"]
[Site "Chess.com"]
[Date "2018.05.01"]
[Round "1"]
[White "Pudor"]
[Black "LADIESGET2KNOWME"]
[Result "0-1"]
[WhiteElo "2207"]
[BlackElo "2525"]
[TimeControl "180+2"]
[EndTime "13:04:58 PDT"]
[Termination "LADIESGET2KNOWME won by resignation"]

1. d4 {[%clk 0:02:53.1]} 1... Nf6 {[%clk 0:02:50.7]} 2. c4 {[%clk 0:02:53.3]}
2... g6 {[%clk 0:02:52.2]} 3. Nc3 {[%clk 0:02:53.4]} 3... Bg7 {[%clk 0:02:54.1]}
4. e4 {[%clk 0:02:53.6]} 4... O-O {[%clk 0:02:56]} 5. Nf3 {[%clk 0:02:54.3]}
5... d6 {[%clk 0:02:57.4]} 6. Be2 {[%clk 0:02:55.3]} 6... e5 {[%clk 0:02:58.9]}
7. O-O {[%clk 0:02:54.5]} 7... Nc6 {[%clk 0:02:59.4]} 8. d5 {[%clk 0:02:55.8]}
8... Ne7 {[%clk 0:03:00.8]} 9. Ne1 {[%clk 0:02:57]} 9... Nd7 {[%clk 0:03:01.5]}
10. Nd3 {[%clk 0:02:58.7]} 10... f5 {[%clk 0:03:03.1]} 11. Bd2 {[%clk
0:03:00.2]} 11... Nf6 {[%clk 0:03:03.7]} 12. f3 {[%clk 0:03:01.1]} 12... f4
{[%clk 0:03:04.3]} 13. g4 {[%clk 0:03:01.9]} 13... fxg3 {[%clk 0:03:04.2]} 14.
hxg3 {[%clk 0:03:02.6]} 14... c6 {[%clk 0:03:00.5]} 15. Kg2 {[%clk 0:03:03.2]}
15... b5 {[%clk 0:02:54.4]} 16. dxc6 {[%clk 0:02:59.9]} 16... bxc4 {[%clk
0:02:55.6]} 17. Nb4 {[%clk 0:02:59.4]} 17... a5 {[%clk 0:02:55.3]} 18. Bxc4+
{[%clk 0:02:57.4]} 18... Kh8 {[%clk 0:02:56.8]} 19. Nbd5 {[%clk 0:02:55.4]}
19... Nxc6 {[%clk 0:02:58.1]} 20. Bg5 {[%clk 0:02:55.2]} 20... Nxd5 {[%clk
0:02:58.4]} 21. Bxd5 {[%clk 0:02:34.5]} 21... Qxg5 {[%clk 0:02:58.8]} 22. Bxc6
{[%clk 0:02:35.6]} 22... Rb8 {[%clk 0:03:00.7]} 23. b3 {[%clk 0:02:29.1]} 23...
Ba6 {[%clk 0:03:01.5]} 24. Re1 {[%clk 0:02:12.7]} 24... Rbc8 {[%clk 0:02:58.3]}
25. Bb5 {[%clk 0:01:36.3]} 25... Rxc3 {[%clk 0:02:59.1]} 26. Bxa6 {[%clk
0:01:36.5]} 26... d5 {[%clk 0:02:56.7]} 27. exd5 {[%clk 0:01:27.9]} 27... Rcxf3
{[%clk 0:02:57]} 28. Qxf3 {[%clk 0:01:10.7]} 28... Rxf3 {[%clk 0:02:58.9]} 29.
Kxf3 {[%clk 0:01:09.7]} 29... e4+ {[%clk 0:02:46.9]} 30. Kxe4 {[%clk 0:00:41.6]}
30... Bxa1 {[%clk 0:02:46.5]} 31. Rxa1 {[%clk 0:00:42.1]} 31... Qf5+ {[%clk
0:02:47.6]} 32. Ke3 {[%clk 0:00:39.7]} 32... Qe5+ {[%clk 0:02:48.5]} 0-1

[Event "*** Titled Tuesday Blitz"]
[Site "Chess.com"]
[Date "2018.05.01"]
[Round "1"]
[White "colegiodemadrid"]
[Black "JoachimBN"]
[Result "1-0"]
[WhiteElo "2298"]
[BlackElo "2551"]
[TimeControl "180+2"]
[EndTime "13:05:09 PDT"]
[Termination "colegiodemadrid won by resignation"]

1. e4 {[%clk 0:03:01.7]} 1... g6 {[%clk 0:03:00]} 2. d4 {[%clk 0:03:02]} 2...
Bg7 {[%clk 0:03:00.5]} 3. Nc3 {[%clk 0:02:59.2]} 3... c5 {[%clk 0:03:01.4]} 4.
Nf3 {[%clk 0:02:59.1]} 4... cxd4 {[%clk 0:03:02.3]} 5. Nxd4 {[%clk 0:03:00.4]}
5... Nc6 {[%clk 0:03:04]} 6. Be3 {[%clk 0:03:00.7]} 6... Nf6 {[%clk 0:03:05]} 7.
Bc4 {[%clk 0:03:00.5]} 7... O-O {[%clk 0:03:05.8]} 8. Bb3 {[%clk 0:02:58.7]}
8... Qa5 {[%clk 0:03:05.6]} 9. O-O {[%clk 0:02:58.7]} 9... d6 {[%clk 0:03:06.6]}
10. Nd5 {[%clk 0:03:00.1]} 10... Nxd5 {[%clk 0:02:47.7]} 11. exd5 {[%clk
0:03:02]} 11... Ne5 {[%clk 0:02:41.2]} 12. h3 {[%clk 0:03:02.4]} 12... Qc7
{[%clk 0:02:34.3]} 13. Qe2 {[%clk 0:03:01.1]} 13... Nd7 {[%clk 0:02:35.3]} 14.
c3 {[%clk 0:02:57.1]} 14... Nc5 {[%clk 0:02:29.5]} 15. Bc2 {[%clk 0:02:56.7]}
15... e5 {[%clk 0:02:23.4]} 16. dxe6 {[%clk 0:02:44.2]} 16... fxe6 {[%clk
0:02:25.3]} 17. Nb5 {[%clk 0:02:44]} 17... Qe7 {[%clk 0:02:23.1]} 18. Rad1
{[%clk 0:02:30.5]} 18... d5 {[%clk 0:02:22.8]} 19. Bd4 {[%clk 0:02:19.2]} 19...
e5 {[%clk 0:02:14.8]} 20. Bxc5 {[%clk 0:02:19.8]} 20... Qxc5 {[%clk 0:02:15.5]}
21. Rxd5 {[%clk 0:02:21.3]} 21... Qe7 {[%clk 0:02:14.4]} 22. Rdd1 {[%clk
0:02:15]} 22... Be6 {[%clk 0:02:09]} 23. Bb3 {[%clk 0:02:14.3]} 23... Bxb3
{[%clk 0:02:06.2]} 24. axb3 {[%clk 0:02:15.1]} 24... a6 {[%clk 0:02:06.4]} 25.
Nd6 {[%clk 0:02:13.4]} 25... Rad8 {[%clk 0:02:07.9]} 26. Ne4 {[%clk 0:02:14.1]}
26... Kh8 {[%clk 0:02:06.3]} 27. b4 {[%clk 0:02:13.2]} 27... h6 {[%clk
0:02:04.5]} 28. Rxd8 {[%clk 0:02:08.6]} 28... Rxd8 {[%clk 0:02:04.8]} 29. Rd1
{[%clk 0:02:10.1]} 29... Kh7 {[%clk 0:02:04.1]} 30. Rxd8 {[%clk 0:02:05.9]}
30... Qxd8 {[%clk 0:02:06]} 31. Qd2 {[%clk 0:02:07.1]} 31... Qc8 {[%clk
0:02:06.8]} 32. Qd5 {[%clk 0:02:02.3]} 32... Qf5 {[%clk 0:02:02.9]} 33. Qxb7
{[%clk 0:02:00.2]} 33... Qf4 {[%clk 0:02:01.9]} 34. g3 {[%clk 0:01:52.1]} 34...
Qc1+ {[%clk 0:01:59.2]} 35. Kg2 {[%clk 0:01:53.3]} 35... Qc2 {[%clk 0:01:59.7]}
36. Nf6+ {[%clk 0:01:51.9]} 1-0

[Event "*** Titled Tuesday Blitz"]
[Site "Chess.com"]
[Date "2018.05.01"]
[Round "1"]
[White "JozefKneht"]
[Black "HarutyunianTigranK"]
[Result "0-1"]
[WhiteElo "2374"]
[BlackElo "2721"]
[TimeControl "180+2"]
[EndTime "13:05:10 PDT"]
[Termination "HarutyunianTigranK won by resignation"]

1. d4 {[%clk 0:03:00.1]} 1... Nf6 {[%clk 0:03:00.2]} 2. Bf4 {[%clk 0:02:59.2]}
2... e6 {[%clk 0:02:59.5]} 3. Nf3 {[%clk 0:02:56.4]} 3... c5 {[%clk 0:02:57.6]}
4. e3 {[%clk 0:02:56.9]} 4... b6 {[%clk 0:02:58]} 5. c3 {[%clk 0:02:56.1]} 5...
Be7 {[%clk 0:02:55.4]} 6. Nbd2 {[%clk 0:02:56.1]} 6... O-O {[%clk 0:02:54.5]} 7.
Bd3 {[%clk 0:02:54.1]} 7... Ba6 {[%clk 0:02:51.2]} 8. Bxa6 {[%clk 0:02:51.2]}
8... Nxa6 {[%clk 0:02:53.1]} 9. h3 {[%clk 0:02:50.2]} 9... d6 {[%clk 0:02:53.3]}
10. O-O {[%clk 0:02:46.6]} 10... Nc7 {[%clk 0:02:50]} 11. a4 {[%clk 0:02:41.4]}
11... cxd4 {[%clk 0:02:50.6]} 12. exd4 {[%clk 0:02:40.4]} 12... Ncd5 {[%clk
0:02:50.8]} 13. Bh2 {[%clk 0:02:38.6]} 13... Qc7 {[%clk 0:02:42.7]} 14. Re1
{[%clk 0:02:31.8]} 14... a6 {[%clk 0:02:43.2]} 15. Qb3 {[%clk 0:01:50.3]} 15...
b5 {[%clk 0:02:26.6]} 16. axb5 {[%clk 0:01:14.2]} 16... axb5 {[%clk 0:02:27]}
17. Nf1 {[%clk 0:00:56.1]} 17... Qb7 {[%clk 0:02:18.4]} 18. Ne3 {[%clk
0:00:43.2]} 18... Nxe3 {[%clk 0:02:13.9]} 19. Rxe3 {[%clk 0:00:41.8]} 19...
Rxa1+ {[%clk 0:02:11.9]} 20. Re1 {[%clk 0:00:24.9]} 20... Rfa8 {[%clk
0:02:08.9]} 0-1

[Event "*** Titled Tuesday Blitz"]
[Site "Chess.com"]
[Date "2018.05.01"]
[Round "1"]
[White "jk13"]
[Black "DrZeiss"]
[Result "1-0"]
[WhiteElo "2522"]
[BlackElo "2199"]
[TimeControl "180+2"]
[EndTime "13:05:19 PDT"]
[Termination "jk13 won by resignation"]

1. e4 {[%clk 0:02:58.7]} 1... c5 {[%clk 0:02:58.3]} 2. c3 {[%clk 0:02:59.6]}
2... Nf6 {[%clk 0:02:58.5]} 3. e5 {[%clk 0:03:00.3]} 3... Nd5 {[%clk 0:02:59.5]}
4. Bc4 {[%clk 0:03:00.6]} 4... Nb6 {[%clk 0:02:59.2]} 5. Bb3 {[%clk 0:02:59.8]}
5... c4 {[%clk 0:03:00.3]} 6. Bc2 {[%clk 0:03:00.5]} 6... Nc6 {[%clk 0:03:01.5]}
7. Nf3 {[%clk 0:03:01.9]} 7... Qc7 {[%clk 0:03:01.7]} 8. Qe2 {[%clk 0:03:02.5]}
8... g6 {[%clk 0:03:02.4]} 9. O-O {[%clk 0:03:02.8]} 9... Bg7 {[%clk 0:03:03.4]}
10. Re1 {[%clk 0:03:04.4]} 10... O-O {[%clk 0:03:03.5]} 11. Na3 {[%clk 0:03:06]}
11... Nd8 {[%clk 0:03:00.3]} 12. b3 {[%clk 0:03:01.8]} 12... cxb3 {[%clk
0:02:57.2]} 13. axb3 {[%clk 0:03:03.7]} 13... d6 {[%clk 0:02:57.6]} 14. Nb5
{[%clk 0:03:03.8]} 14... Qb8 {[%clk 0:02:54.3]} 15. exd6 {[%clk 0:03:04.1]}
15... exd6 {[%clk 0:02:54.5]} 16. Ba3 {[%clk 0:03:05.3]} 16... Bg4 {[%clk
0:02:45.9]} 17. Bxd6 {[%clk 0:02:59.9]} 17... Qc8 {[%clk 0:02:46.1]} 18. Bxf8
{[%clk 0:02:52.7]} 18... Bxf8 {[%clk 0:02:45.4]} 19. h3 {[%clk 0:02:40.6]} 19...
Bd7 {[%clk 0:02:39.4]} 20. Nfd4 {[%clk 0:02:21.4]} 20... a6 {[%clk 0:02:35.2]}
21. Na3 {[%clk 0:02:19.5]} 21... Nd5 {[%clk 0:02:35.7]} 22. Qf3 {[%clk
0:02:18.3]} 22... Qc5 {[%clk 0:02:23.1]} 23. Nc4 {[%clk 0:02:06.7]} 23... Nc6
{[%clk 0:02:07.6]} 24. Nxc6 {[%clk 0:01:32.1]} 24... Bxc6 {[%clk 0:02:07.7]} 25.
Ne5 {[%clk 0:01:32.6]} 25... Be8 {[%clk 0:02:01.3]} 26. Be4 {[%clk 0:01:24.1]}
26... Rd8 {[%clk 0:01:58.5]} 27. Ng4 {[%clk 0:01:18.6]} 27... Kh8 {[%clk
0:01:51.6]} 28. Bxd5 {[%clk 0:01:16.1]} 28... Qxf2+ {[%clk 0:01:49.3]} 29. Nxf2
{[%clk 0:01:16.2]} 1-0

[Event "*** Titled Tuesday Blitz"]
[Site "Chess.com"]
[Date "2018.05.01"]
[Round "1"]
[White "maciek_92"]
[Black "Mbneu"]
[Result "1-0"]
[WhiteElo "2584"]
[BlackElo "2281"]
[TimeControl "180+2"]
[EndTime "13:05:21 PDT"]
[Termination "maciek_92 won by resignation"]

1. c4 {[%clk 0:03:01.9]} 1... Nf6 {[%clk 0:03:00.1]} 2. Nc3 {[%clk 0:03:03.1]}
2... e6 {[%clk 0:03:01.3]} 3. e4 {[%clk 0:03:04.2]} 3... d5 {[%clk 0:03:02]} 4.
e5 {[%clk 0:03:02.2]} 4... Ne4 {[%clk 0:03:02.7]} 5. Nf3 {[%clk 0:03:02.1]} 5...
c5 {[%clk 0:03:02.4]} 6. Bd3 {[%clk 0:02:55.8]} 6... Nxc3 {[%clk 0:03:00]} 7.
bxc3 {[%clk 0:02:54.6]} 7... Be7 {[%clk 0:02:53.9]} 8. O-O {[%clk 0:02:54.4]}
8... O-O {[%clk 0:02:53.9]} 9. Qe2 {[%clk 0:02:55.8]} 9... Nc6 {[%clk
0:02:52.3]} 10. Bc2 {[%clk 0:02:46.2]} 10... dxc4 {[%clk 0:02:47.7]} 11. Qxc4
{[%clk 0:02:41.7]} 11... Qd5 {[%clk 0:02:48.8]} 12. Qe2 {[%clk 0:02:40.1]} 12...
b6 {[%clk 0:02:34.8]} 13. Be4 {[%clk 0:02:38.8]} 13... Qd7 {[%clk 0:02:35.3]}
14. d3 {[%clk 0:02:33.9]} 14... Bb7 {[%clk 0:02:35.5]} 15. Ng5 {[%clk
0:02:29.8]} 15... g6 {[%clk 0:02:22.5]} 16. Nh3 {[%clk 0:02:07.1]} 16... Rfb8
{[%clk 0:02:10.3]} 17. Bf4 {[%clk 0:02:05.5]} 17... Bf8 {[%clk 0:02:09.4]} 18.
Bg3 {[%clk 0:02:00.8]} 18... Bg7 {[%clk 0:02:09.4]} 19. f4 {[%clk 0:02:02.1]}
19... Ne7 {[%clk 0:02:09.6]} 20. Ng5 {[%clk 0:02:02.1]} 20... Nd5 {[%clk
0:02:01.5]} 21. Rac1 {[%clk 0:02:00]} 21... Ba6 {[%clk 0:01:59]} 22. Rfd1 {[%clk
0:01:47.2]} 22... Rd8 {[%clk 0:01:55.6]} 23. c4 {[%clk 0:01:46]} 23... Nb4
{[%clk 0:01:56.1]} 24. Qf3 {[%clk 0:01:40.7]} 24... Rac8 {[%clk 0:01:53.5]} 25.
a3 {[%clk 0:01:41.2]} 25... h6 {[%clk 0:01:49.5]} 26. axb4 {[%clk 0:01:39.5]}
26... hxg5 {[%clk 0:01:49.7]} 27. b5 {[%clk 0:01:40.8]} 27... gxf4 {[%clk
0:01:47.9]} 28. Bxf4 {[%clk 0:01:40.1]} 28... Qd4+ {[%clk 0:01:48.9]} 29. Be3
{[%clk 0:01:38.6]} 29... Qxe5 {[%clk 0:01:48.2]} 30. bxa6 {[%clk 0:01:39.7]}
30... Qc3 {[%clk 0:01:40.8]} 31. Rxc3 {[%clk 0:01:30.1]} 1-0